fUST/lending_fUST_20250707
["ID","MTS","AMOUNT","RATE_DAILY","PERIOD"]
[370090984,1751878274105,-460.0,0.00018236,2]
[370090985,1751878274121,-193.32,0.00018236,2]
[370090986,1751878274137,-460.0,0.00018236,2]
[370090987,1751878274153,-978.47,0.00018236,2]
[370090988,1751878274169,-1929.95,0.00018236,2]
[370090989,1751878274185,-460.0,0.00018236,2]
[370090990,1751878274201,-479.04,0.00018236,2]
[370090991,1751878274216,-460.0,0.00018236,2]
[370090992,1751878274232,-460.0,0.00018236,2]
[370090993,1751878274248,-460.0,0.00018236,2]
[370090994,1751878274264,-460.0,0.00018236,2]
[370090995,1751878274281,-347.24402422,0.00018236,2]
[370090996,1751878274296,-961.6,0.00018236,2]
[370090997,1751878274312,-1232.5,0.00018236,2]
[370090998,1751878274329,-2371.65,0.00018236,2]
[370090999,1751878274345,-584.495755,0.00018236,2]
[370091000,1751878274361,-584.495755,0.00018236,2]
[370091001,1751878274377,-460.0,0.00018236,2]
[370091002,1751878274555,-1116.74,0.00018236,2]
[370091003,1751878274570,-4190.5,0.00018236,2]
[370091004,1751878274580,-264.124102,0.00018236,2]
[370091005,1751878274590,-264.124102,0.00018236,2]
[370091006,1751878274600,-902.138538,0.00018236,2]
[370091007,1751878274609,-460.0,0.00018236,2]
[370091008,1751878274619,-902.138538,0.00018236,2]
[370091009,1751878274629,-584.79,0.00018236,2]
[370091010,1751878274639,-460.0,0.00018238,2]
[370091011,1751878274648,-460.0,0.00018238,2]
[370091012,1751878274658,-460.0,0.00018238,2]
[370091013,1751878274670,-460.0,0.00018238,2]
[370091014,1751878274680,-460.0,0.00018238,2]
[370091015,1751878274689,-460.0,0.00018238,2]
[370091016,1751878274698,-460.0,0.00018238,2]
[370091017,1751878274708,-460.0,0.00018238,2]
[370091018,1751878274717,-460.0,0.00018238,2]
[370091019,1751878274727,-460.0,0.00018238,2]
[370091020,1751878274737,-460.0,0.00018238,2]
[370091021,1751878274747,-460.0,0.00018238,2]
[370091022,1751878274756,-504.54,0.00018238,2]
[370091023,1751878274766,-460.0,0.00018238,2]
[370091024,1751878274775,-460.0,0.00018238,2]
[370091025,1751878274784,-460.0,0.00018238,2]
[370091026,1751878274794,-460.0,0.00018238,2]
[370091027,1751878274804,-460.0,0.00018238,2]
[370091028,1751878274815,-813.31,0.00018238,2]
[370091029,1751878274826,-460.0,0.00018238,2]
[370091030,1751878274836,-696.66,0.00018238,2]
[370091031,1751878274846,-460.0,0.00018238,2]
[370091032,1751878274856,-460.0,0.00018238,2]
[370091033,1751878274865,-460.0,0.00018238,2]
[370091034,1751878274874,-460.0,0.00018238,2]
[370091035,1751878274885,-460.0,0.00018238,2]
[370091036,1751878274894,-460.0,0.00018238,2]
[370091037,1751878274904,-460.0,0.00018238,2]
[370091038,1751878274915,-460.0,0.00018238,2]
[370091039,1751878274927,-460.0,0.00018238,2]
[370091040,1751878274937,-460.0,0.00018238,2]
[370091041,1751878274948,-460.0,0.00018238,2]
[370091042,1751878274957,-642.4,0.00018238,2]
[370091043,1751878274966,-989.64,0.00018238,2]
[370091044,1751878274975,-591.78,0.00018238,2]
[370091045,1751878274989,-460.0,0.00018238,2]
[370091046,1751878274999,-460.0,0.00018238,2]
[370091047,1751878275010,-460.0,0.00018238,2]
[370091048,1751878275020,-549.97,0.00018238,2]
[370091049,1751878275029,-460.0,0.00018238,2]
[370091050,1751878275039,-668.91,0.00018238,2]
[370091051,1751878275050,-460.0,0.00018238,2]
[370091052,1751878275060,-460.0,0.00018238,2]
[370091053,1751878275070,-1175.75,0.00018238,2]
[370091054,1751878275080,-460.0,0.00018238,2]
[370091055,1751878275089,-575.32,0.00018238,2]
[370091056,1751878275099,-501.04,0.00018238,2]
[370091057,1751878275110,-460.0,0.00018238,2]
[370091058,1751878275123,-460.0,0.00018238,2]
[370091059,1751878275133,-460.0,0.00018238,2]
[370091060,1751878275145,-460.0,0.00018238,2]
[370091061,1751878275155,-460.0,0.00018238,2]
[370091062,1751878275168,-460.0,0.00018238,2]
[370091063,1751878275179,-460.0,0.00018238,2]
[370091064,1751878275189,-1816.74,0.00018238,2]
[370091065,1751878275201,-460.0,0.00018238,2]
[370091066,1751878275211,-460.0,0.00018238,2]
[370091067,1751878275222,-460.0,0.00018238,2]
[370091068,1751878275233,-627.71,0.00018238,2]
[370091069,1751878275243,-1190.73,0.00018238,2]
[370091070,1751878275253,-460.0,0.00018238,2]
[370091071,1751878275264,-1436.76,0.00018238,2]
[370091072,1751878275276,-460.0,0.00018238,2]
[370091073,1751878275286,-460.0,0.00018238,2]
[370091074,1751878275296,-744.3,0.00018238,2]
[370091075,1751878275307,-460.0,0.00018238,2]
[370091076,1751878275317,-482.07913872,0.00018239,2]
[370091077,1751878275327,-460.0,0.00018239,2]
[370091078,1751878275337,-190.6115,0.00018239,2]
[370091079,1751878275348,-190.6115,0.00018239,2]
[370091080,1751878275358,-463.884223,0.00018239,2]
[370091081,1751878275371,-463.884223,0.00018239,2]
[370091082,1751878275381,-309.444679,0.00018239,2]
[370091083,1751878275391,-309.444679,0.00018239,2]
[370091084,1751878275401,-460.0,0.00018239,2]
[370091085,1751878275411,-460.0,0.00018239,2]
[370091086,1751878275422,-460.0,0.00018239,2]
[370091087,1751878275432,-460.0,0.00018239,2]
[370091088,1751878275443,-1626.87,0.00018239,2]
[370091089,1751878275453,-1041.83,0.00018239,2]
[370091090,1751878275464,-460.0,0.00018239,2]
[370091091,1751878275474,-460.0,0.00018239,2]
[370091092,1751878275484,-1219.94,0.00018239,2]
[370091093,1751878275494,-11783.72,0.00018239,2]
[370091094,1751878275505,-516.28,0.00018239,2]
[370091095,1751878275515,-1126.4,0.00018239,2]
[370091096,1751878275525,-3083.89,0.00018239,2]
[370091097,1751878275535,-746.91,0.00018239,2]
[370091098,1751878275545,-460.0,0.00018239,2]
[370091099,1751878275555,-1051.67,0.00018239,2]
[370091100,1751878275567,-460.0,0.0001824,2]
[370091101,1751878275578,-460.0,0.0001824,2]
[370091102,1751878275587,-460.0,0.0001824,2]
[370091103,1751878275596,-460.0,0.0001824,2]
[370091104,1751878275606,-591.6,0.0001824,2]
[370091105,1751878275615,-566.95,0.0001824,2]
[370091106,1751878275625,-460.0,0.0001824,2]
[370091107,1751878275635,-460.0,0.0001824,2]
[370091108,1751878275645,-350.876114,0.00018264,2]
[370091109,1751878275657,-500.0,0.00018304,2]
[370091110,1751878275667,-500.57033979,0.00018321,2]
[370091111,1751878275677,-662.35820042,0.00018321,2]
[370091112,1751878275686,-500.34727008,0.00018321,2]
[370091113,1751878275697,-460.0,0.00018338,2]
[370091114,1751878275707,-1466.61,0.00018338,2]
[370091115,1751878275717,-1693.65,0.00018338,2]
[370091116,1751878275727,-460.0,0.00018338,2]
[370091117,1751878275736,-511.73,0.00018338,2]
[370091118,1751878275746,-5131.36,0.00018338,2]
[370091119,1751878275757,-460.0,0.00018338,2]
[370091120,1751878275768,-927.78,0.00018338,2]
[370091121,1751878275779,-460.0,0.00018338,2]
[370091122,1751878275790,-2375.1,0.00018338,2]
[370091123,1751878275801,-4148.36,0.00018338,2]
[370091124,1751878275811,-460.0,0.00018338,2]
[370091125,1751878275823,-1006.41,0.00018338,2]
[370091126,1751878275833,-460.0,0.00018338,2]
[370091127,1751878275842,-9521.95,0.00018338,2]
[370091128,1751878275852,-2677.89,0.00018338,2]
[370091129,1751878275863,-927.92,0.00018338,2]
[370091130,1751878275875,-460.0,0.00018338,2]
[370091131,1751878275886,-460.0,0.00018339,2]
[370091132,1751878275898,-460.0,0.00018339,2]
[370091133,1751878275908,-460.0,0.00018339,2]
[370091134,1751878275918,-460.0,0.00018339,2]
[370091135,1751878275928,-460.0,0.00018339,2]
[370091136,1751878275938,-460.0,0.00018339,2]
[370091137,1751878275947,-290.96721089,0.00018339,2]
[370091138,1751878275957,-460.0,0.00018339,2]
[370091139,1751878275967,-652.73,0.00018339,2]
[370091140,1751878275976,-174.99925053,0.00018339,2]
[370091141,1751878275986,-460.0,0.00018339,2]
[370091142,1751878275997,-151.0,0.00018339,2]
[370091143,1751878276008,-460.0,0.00018339,2]
[370091144,1751878276017,-460.0,0.00018339,2]
[370091145,1751878276027,-460.0,0.00018339,2]
[370091146,1751878276037,-460.0,0.00018339,2]
[370091147,1751878276047,-460.0,0.00018339,2]
[370091148,1751878276056,-460.0,0.00018339,2]
[370091149,1751878276066,-460.0,0.00018339,2]
[370091150,1751878276075,-460.0,0.00018339,2]
[370091151,1751878276085,-460.0,0.00018339,2]
[370091152,1751878276097,-460.0,0.00018339,2]
[370091153,1751878276108,-189.64653,0.00018339,2]
[370091154,1751878276119,-189.64653,0.00018339,2]
[370091155,1751878276129,-460.0,0.00018339,2]
[370091156,1751878276140,-460.0,0.00018339,2]
[370091157,1751878276150,-460.0,0.00018339,2]
[370091158,1751878276161,-460.0,0.00018339,2]
[370091159,1751878276172,-460.0,0.00018339,2]
[370091160,1751878276182,-460.0,0.00018339,2]
[370091161,1751878276192,-460.0,0.00018339,2]
[370091162,1751878276201,-460.0,0.00018339,2]
[370091163,1751878276210,-460.0,0.00018339,2]
[370091164,1751878276220,-460.0,0.00018339,2]
[370091165,1751878276229,-170.67562227,0.00018339,2]
[370091166,1751878276239,-460.0,0.00018339,2]
[370091167,1751878276248,-450.44,0.00018339,2]
[370091168,1751878276258,-460.0,0.00018339,2]
[370091169,1751878276267,-460.0,0.00018339,2]
[370091170,1751878276277,-211.911253,0.00018339,2]
[370091171,1751878276287,-211.911253,0.00018339,2]
[370091172,1751878276296,-467.41917721,0.00018339,2]
[370091173,1751878276307,-460.0,0.00018339,2]
[370091174,1751878276317,-424.86153234,0.00018339,2]
[370091175,1751878276327,-460.0,0.00018339,2]
[370091176,1751878276337,-460.0,0.00018339,2]
[370091177,1751878276349,-460.0,0.00018339,2]
[370091178,1751878276359,-310.43988614,0.00018339,2]
[370091179,1751878276368,-151.0,0.00018339,2]
[370091180,1751878276378,-460.0,0.00018339,2]
[370091181,1751878276388,-590.05,0.00018339,2]
[370091182,1751878276398,-642.41,0.00018339,2]
[370091183,1751878276407,-460.0,0.00018339,2]
[370091184,1751878276417,-460.0,0.00018339,2]
[370091185,1751878276427,-460.0,0.00018339,2]
[370091186,1751878276436,-460.0,0.00018339,2]
[370091187,1751878276447,-1814.25,0.00018339,2]
[370091188,1751878276456,-151.0,0.00018339,2]
[370091189,1751878276466,-460.0,0.00018339,2]
[370091190,1751878276475,-460.0,0.00018339,2]
[370091191,1751878276485,-780.98,0.00018339,2]
[370091192,1751878276495,-460.0,0.00018339,2]
[370091193,1751878276505,-460.0,0.00018339,2]
[370091194,1751878276515,-460.0,0.00018339,2]
[370091195,1751878276524,-151.0,0.00018339,2]
[370091196,1751878276534,-739.46,0.00018339,2]
[370091197,1751878276544,-460.0,0.00018339,2]
[370091198,1751878276554,-460.0,0.00018339,2]
[370091199,1751878276563,-460.0,0.00018339,2]
[370091200,1751878276573,-151.948599,0.00018339,2]
[370091201,1751878276583,-461.70108176,0.00018339,2]
[370091202,1751878276592,-460.0,0.00018339,2]
[370091203,1751878276602,-1473.58,0.00018339,2]
[370091204,1751878276612,-588.15938623,0.00018339,2]
[370091205,1751878276621,-460.0,0.00018339,2]
[370091206,1751878276630,-460.0,0.00018339,2]
[370091207,1751878276640,-460.0,0.00018339,2]
[370091208,1751878276649,-460.0,0.00018339,2]
[370091209,1751878276658,-460.0,0.00018339,2]
[370091210,1751878276669,-460.0,0.00018339,2]
[370091211,1751878276678,-460.0,0.00018339,2]
[370091212,1751878276688,-442.28549541,0.00018339,2]
[370091213,1751878276698,-537.97,0.00018339,2]
[370091214,1751878276707,-174.6363656,0.00018339,2]
[370091215,1751878276716,-460.0,0.00018339,2]
[370091216,1751878276726,-460.0,0.00018339,2]
[370091217,1751878276735,-474.52,0.00018339,2]
[370091218,1751878276744,-460.0,0.00018339,2]
[370091219,1751878276754,-460.0,0.00018339,2]
[370091220,1751878276763,-460.0,0.00018339,2]
[370091221,1751878276773,-460.0,0.00018339,2]
[370091222,1751878276782,-463.45,0.00018339,2]
[370091223,1751878276791,-515.18,0.00018339,2]
[370091224,1751878276800,-569.19,0.00018339,2]
[370091225,1751878276810,-460.0,0.00018339,2]
[370091226,1751878276822,-474.81,0.00018339,2]
[370091227,1751878276831,-590.63,0.00018339,2]
[370091228,1751878276840,-460.0,0.00018339,2]
[370091229,1751878276850,-517.21,0.00018339,2]
[370091230,1751878276859,-600.59,0.00018339,2]
[370091231,1751878276868,-460.0,0.00018339,2]
[370091232,1751878276878,-460.0,0.00018339,2]
[370091233,1751878276887,-460.0,0.00018339,2]
[370091234,1751878276897,-272.50166,0.00018339,2]
[370091235,1751878276906,-272.50166,0.00018339,2]
[370091236,1751878276915,-460.14,0.00018339,2]
[370091237,1751878276925,-460.0,0.00018339,2]
[370091238,1751878276935,-460.0,0.00018339,2]
[370091239,1751878276944,-460.0,0.00018339,2]
[370091240,1751878277108,-460.0,0.00018339,2]
[370091241,1751878277118,-503.25,0.00018339,2]
[370091242,1751878277128,-500.0,0.00018339,2]
[370091243,1751878277137,-1790.38,0.00018339,2]
[370091244,1751878277146,-500.0,0.00018339,2]
[370091245,1751878277156,-460.0,0.00018339,2]
[370091246,1751878277166,-1020.84,0.00018339,2]
[370091247,1751878277175,-460.0,0.00018339,2]
[370091248,1751878277184,-628.75,0.00018339,2]
[370091249,1751878277193,-724.26,0.00018339,2]
[370091250,1751878277203,-460.0,0.00018339,2]
[370091251,1751878277213,-599.29,0.00018339,2]
[370091252,1751878277222,-618.64,0.00018339,2]
[370091253,1751878277232,-460.0,0.00018339,2]
[370091254,1751878277241,-460.0,0.00018339,2]
[370091255,1751878277251,-460.0,0.00018339,2]
[370091256,1751878277260,-460.0,0.00018339,2]
[370091257,1751878277269,-736.7,0.00018339,2]
[370091258,1751878277279,-513.26,0.00018339,2]
[370091259,1751878277289,-2101.7,0.00018339,2]
[370091260,1751878277299,-701.27,0.00018339,2]
[370091261,1751878277309,-460.0,0.00018339,2]
[370091262,1751878277318,-501.61,0.00018339,2]
[370091263,1751878277328,-621.18,0.00018339,2]
[370091264,1751878277338,-460.0,0.00018339,2]
[370091265,1751878277347,-460.0,0.00018339,2]
[370091266,1751878277356,-460.0,0.00018339,2]
[370091267,1751878277366,-460.0,0.00018339,2]
[370091268,1751878277375,-460.0,0.00018339,2]
[370091269,1751878277385,-460.0,0.00018339,2]
[370091270,1751878277395,-460.0,0.00018339,2]
[370091271,1751878277404,-1588.08,0.00018339,2]
[370091272,1751878277413,-460.0,0.00018339,2]
[370091273,1751878277423,-1502.2,0.00018339,2]
[370091274,1751878277433,-460.0,0.00018339,2]
[370091275,1751878277443,-603.3,0.00018339,2]
[370091276,1751878277453,-645.22,0.00018339,2]
[370091277,1751878277463,-461.34860061,0.00018339,2]
[370091278,1751878277472,-460.0,0.00018339,2]
[370091279,1751878277482,-460.0,0.00018339,2]
[370091280,1751878277491,-460.0,0.00018339,2]
[370091281,1751878277501,-333.55582648,0.00018339,2]
[370091282,1751878277511,-460.0,0.00018339,2]
[370091283,1751878277521,-802.16,0.00018339,2]
[370091284,1751878277530,-460.0,0.00018339,2]
[370091285,1751878277540,-582.95,0.00018339,2]
[370091286,1751878277550,-460.0,0.00018339,2]
[370091287,1751878277560,-518.66,0.00018339,2]
[370091288,1751878277570,-461.06,0.00018339,2]
[370091289,1751878277580,-460.0,0.00018339,2]
[370091290,1751878277589,-882.2,0.00018339,2]
[370091291,1751878277599,-460.0,0.00018339,2]
[370091292,1751878277609,-460.0,0.00018339,2]
[370091293,1751878277618,-460.0,0.00018339,2]
[370091294,1751878277628,-466.33,0.00018339,2]
[370091295,1751878277637,-460.0,0.00018339,2]
[370091296,1751878277647,-811.29,0.00018339,2]
[370091297,1751878277656,-460.0,0.00018339,2]
[370091298,1751878277666,-460.0,0.00018341,2]
[370091299,1751878277676,-460.0,0.00018341,2]
[370091300,1751878277685,-460.0,0.00018341,2]
[370091301,1751878277694,-402.19392679,0.00018341,2]
[370091302,1751878277704,-575.59,0.00018341,2]
[370091303,1751878277713,-460.0,0.00018341,2]
[370091304,1751878277722,-460.0,0.00018341,2]
[370091305,1751878277731,-460.0,0.00018341,2]
[370091306,1751878277741,-460.0,0.00018341,2]
[370091307,1751878277750,-460.0,0.00018341,2]
[370091308,1751878277759,-460.0,0.00018342,2]
[370091309,1751878277768,-773.469148,0.00018342,2]
[370091310,1751878277777,-773.469148,0.00018342,2]
[370091311,1751878277787,-670.12472,0.00018342,2]
[370091312,1751878277797,-670.12472,0.00018342,2]
[370091313,1751878277807,-549.339809,0.00018342,2]
[370091314,1751878277818,-151.0,0.00018342,2]
[370091315,1751878277827,-460.0,0.00018343,2]
[370091316,1751878277836,-460.0,0.00018343,2]
[370091317,1751878277846,-460.0,0.00018343,2]
[370091318,1751878277855,-460.0,0.00018343,2]
[370091319,1751878277865,-460.0,0.00018343,2]
[370091320,1751878277874,-458.59484047,0.00018343,2]
[370091321,1751878277884,-151.0,0.00018344,2]
[370091322,1751878277895,-151.0,0.00018344,2]
[370091323,1751878277905,-489.07,0.00018344,2]
[370091324,1751878277915,-460.0,0.00018344,2]
[370091325,1751878277925,-460.0,0.00018344,2]
[370091326,1751878277935,-1820.82,0.00018344,2]
[370091327,1751878277944,-460.0,0.00018344,2]
[370091328,1751878277954,-460.0,0.00018344,2]
[370091329,1751878277964,-460.0,0.00018344,2]
[370091330,1751878277974,-460.0,0.00018344,2]
[370091331,1751878277983,-697.17,0.00018344,2]
[370091332,1751878277993,-460.0,0.00018344,2]
[370091333,1751878278002,-460.0,0.00018344,2]
[370091334,1751878278012,-584.48,0.00018344,2]
[370091335,1751878278022,-686.19,0.00018344,2]
[370091336,1751878278031,-460.0,0.00018344,2]
[370091337,1751878278040,-460.0,0.00018344,2]
[370091338,1751878278050,-460.0,0.00018344,2]
[370091339,1751878278059,-460.0,0.00018344,2]
[370091340,1751878278069,-891.26,0.00018344,2]
[370091341,1751878278079,-460.0,0.00018344,2]
[370091342,1751878278088,-460.0,0.00018344,2]
[370091343,1751878278097,-597.07,0.00018344,2]
[370091344,1751878278107,-460.0,0.00018344,2]
[370091345,1751878278117,-511.02,0.00018344,2]
[370091346,1751878278126,-461.69,0.00018344,2]
[370091347,1751878278135,-460.0,0.00018344,2]
[370091348,1751878278144,-460.0,0.00018344,2]
[370091349,1751878278153,-460.0,0.00018344,2]
[370091350,1751878278163,-460.0,0.00018344,2]
[370091351,1751878278173,-460.0,0.00018344,2]
[370091352,1751878278182,-434.19659727,0.00018344,2]
[370091353,1751878278192,-151.0,0.00018345,2]
[370091354,1751878278202,-273.721132,0.00018345,2]
[370091355,1751878278211,-273.721132,0.00018345,2]
[370091356,1751878278220,-158.55,0.00018345,2]
[370091357,1751878278230,-158.55,0.00018345,2]
[370091358,1751878278239,-460.0,0.00018345,2]
[370091359,1751878278248,-460.0,0.00018345,2]
[370091360,1751878278258,-460.0,0.00018345,2]
[370091361,1751878278267,-460.0,0.00018345,2]
[370091362,1751878278276,-460.0,0.00018345,2]
[370091363,1751878278286,-460.0,0.00018345,2]
[370091364,1751878278295,-460.0,0.00018345,2]
[370091365,1751878278305,-579.14,0.00018345,2]
[370091366,1751878278315,-639.905489,0.00018345,2]
[370091367,1751878278324,-639.905489,0.00018345,2]
[370091368,1751878278334,-350.876114,0.00018346,2]
[370091369,1751878278343,-469.47284051,0.00018368,2]
[370091370,1751878278353,-1500.0,0.00018368,2]
[370091371,1751878278362,-743.6402379,0.00018368,2]
[370091372,1751878278372,-1000.0,0.00018368,2]
[370091373,1751878278382,-500.0,0.00018372,2]
[370091374,1751878278392,-1500.0,0.00018372,2]
[370091375,1751878278402,-1501.85873323,0.00018372,2]
[370091376,1751878278412,-1500.0,0.00018372,2]
[370091377,1751878278422,-502.47186494,0.00018372,2]
[370091378,1751878278432,-1500.0,0.00018372,2]
[370091379,1751878278441,-1000.7661814,0.00018372,2]
[370091380,1751878278451,-1500.0,0.00018372,2]
[370091381,1751878278461,-1500.0,0.00018372,2]
[370091382,1751878278471,-1624.79786689,0.00018372,2]
[370091383,1751878278480,-1500.0,0.00018372,2]
[370091384,1751878278489,-500.0,0.00018373,2]
[370091385,1751878278500,-500.0,0.00018373,2]
[370091386,1751878278509,-500.0,0.00018373,2]
[370091387,1751878278519,-500.0,0.00018373,2]
[370091388,1751878278528,-500.0,0.00018373,2]
[370091389,1751878278538,-500.0,0.00018373,2]
[370091390,1751878278548,-500.0,0.00018373,2]
[370091391,1751878278558,-500.88076442,0.00018373,2]
[370091392,1751878278567,-500.0,0.00018373,2]
[370091393,1751878278576,-198.52158594,0.00018373,2]
[370091394,1751878278586,-500.0,0.00018373,2]
[370091395,1751878278596,-500.0,0.00018386,2]
[370091396,1751878278605,-151.0,0.00018386,2]
[370091397,1751878278615,-500.0,0.00018386,2]
[370091398,1751878278625,-151.0,0.00018386,2]
[370091399,1751878278635,-151.0,0.00018386,2]
[370091400,1751878278644,-151.0,0.00018386,2]
[370091401,1751878278652,-500.0,0.00018386,2]
[370091402,1751878278661,-500.0,0.00018386,2]
[370091403,1751878278671,-500.0,0.00018386,2]
[370091404,1751878278680,-151.0,0.00018386,2]
[370091405,1751878278689,-151.0,0.00018386,2]
[370091406,1751878278698,-500.0,0.00018386,2]
[370091407,1751878278709,-151.0,0.00018386,2]
[370091408,1751878278718,-151.0,0.00018386,2]
[370091409,1751878278727,-151.0,0.00018386,2]
[370091410,1751878278737,-248.03747,0.00018386,2]
[370091411,1751878278747,-1551.0,0.00018386,2]
[370091412,1751878278756,-151.0,0.00018386,2]
[370091413,1751878278766,-500.0,0.00018386,2]
[370091414,1751878278775,-500.0,0.00018386,2]
[370091415,1751878278785,-500.0,0.00018386,2]
[370091416,1751878278795,-500.0,0.00018386,2]
[370091417,1751878278805,-151.0,0.00018386,2]
[370091418,1751878278815,-500.0,0.00018386,2]
[370091419,1751878278826,-238.81333184,0.00018386,2]
[370091420,1751878278835,-500.0,0.00018386,2]
[370091421,1751878278844,-500.0,0.00018386,2]
[370091422,1751878278854,-500.0,0.00018386,2]
[370091423,1751878278864,-500.0,0.00018386,2]
[370091424,1751878278873,-151.0,0.00018386,2]
[370091425,1751878278882,-151.0,0.00018386,2]
[370091426,1751878278891,-500.0,0.00018386,2]
[370091427,1751878278900,-151.0,0.00018386,2]
[370091428,1751878278910,-151.0,0.00018386,2]
[370091429,1751878278919,-151.0,0.00018386,2]
[370091430,1751878278929,-500.0,0.00018386,2]
[370091431,1751878278938,-151.0,0.00018386,2]
[370091432,1751878278947,-151.0,0.00018386,2]
[370091433,1751878278956,-500.0,0.00018386,2]
[370091434,1751878278965,-1081.0,0.00018386,2]
[370091435,1751878278974,-500.0,0.00018387,2]
[370091436,1751878278984,-153.49223589,0.00018396,2]
[370091437,1751878278993,-500.0,0.00018396,2]
[370091438,1751878279002,-500.0,0.00018396,2]
[370091439,1751878279011,-500.0,0.00018396,2]
[370091440,1751878279020,-535.64151652,0.00018396,2]
[370091441,1751878279029,-500.0,0.00018396,2]
[370091442,1751878279039,-500.0,0.00018396,2]
[370091443,1751878279048,-500.0,0.00018396,2]
[370091444,1751878279057,-500.0,0.00018396,2]
[370091445,1751878279066,-500.0,0.00018396,2]
[370091446,1751878279075,-160.22337262,0.00018396,2]
[370091447,1751878279084,-160.22793236,0.00018396,2]
[370091448,1751878279093,-483.44486392,0.00018396,2]
[370091449,1751878279102,-160.17681006,0.00018396,2]
[370091450,1751878279112,-160.21867717,0.00018396,2]
[370091451,1751878279122,-160.22245572,0.00018396,2]
[370091452,1751878279131,-500.0,0.00018396,2]
[370091453,1751878279141,-319.81999037,0.00018396,2]
[370091454,1751878279150,-160.23026225,0.00018396,2]
[370091455,1751878279160,-418.00745834,0.00018396,2]
[370091456,1751878279169,-602.87487533,0.00018413,2]
[370091457,1751878279178,-500.0,0.00018413,2]
[370091458,1751878279187,-151.0,0.00018413,2]
[370091459,1751878279197,-151.0,0.00018413,2]
[370091460,1751878279207,-260.93745634,0.00018413,2]
[370091461,1751878279217,-500.0,0.00018413,2]
[370091462,1751878279226,-500.0,0.00018413,2]
[370091463,1751878279236,-500.0,0.00018413,2]
[370091464,1751878279247,-151.0,0.00018413,2]
[370091465,1751878279256,-268.975566,0.00018413,2]
[370091466,1751878279265,-500.0,0.00018413,2]
[370091467,1751878279274,-151.0,0.00018413,2]
[370091468,1751878279284,-151.0,0.00018413,2]
[370091469,1751878279294,-1551.0,0.00018413,2]
[370091470,1751878279303,-151.0,0.00018413,2]
[370091471,1751878279313,-562.6982825,0.00018413,2]
[370091472,1751878279323,-500.0,0.00018413,2]
[370091473,1751878279333,-500.0,0.00018413,2]
[370091474,1751878279343,-500.0,0.00018413,2]
[370091475,1751878279353,-255.59852124,0.00018413,2]
[370091476,1751878279363,-500.0,0.00018413,2]
[370091477,1751878279372,-500.0,0.00018413,2]
[370091478,1751878279382,-500.0,0.00018413,2]
[370091479,1751878279392,-500.0,0.00018413,2]
[370091480,1751878279401,-500.0,0.00018413,2]
[370091481,1751878279411,-169.89373213,0.00018413,2]
[370091482,1751878279421,-151.0,0.00018413,2]
[370091483,1751878279431,-500.0,0.00018413,2]